[Event "13th All African Rapid-ch Men 2024"]
[Site "Accra"]
[Date "2024.03.10"]
[Round "4.4"]
[White "Pedro Manuel Envo Engonga Avom"]
[Black "Mwali, Chitumbo"]
[Result "0-1"]
[ECO "C56"]
[WhiteElo "1702"]
[BlackElo "2340"]
[Annotator "TA"]
[PlyCount "33"]
[EventDate "2024.03.07"]
[EventType "rapid"]
[EventCountry "GHA"]
[SourceTitle "playchess.com"]
[Source "ChessBase"]
[SourceQuality "1"]
[TimeControl "900+10"]

{[%evp 12,33,-118,-137,-78,-88,-70,-168,-160,-432,-321,-494,-487,-597,-599,-641,-484,-899,-885,-888,-883,-916,-905,-920]} 1. e4 {[%emt 0:00:02]} e5 {[%emt 0:00:02]} 2. Nf3 {[%emt 0:00:01]} Nc6 {[%emt 0:00:02]} 3. d4 {[%emt 0:00:14]} exd4 {[%emt 0:00:10]} 4. Bc4 {[%emt 0:00:04]} Nf6 {[%emt 0:00:11]} 5. c3 {[%emt 0:00:25]} Nxe4 {[%emt 0:00:34]} 6. O-O {[%emt 0:03:12]} d5 {[%emt 0:00:34]} 7. Re1 {[%emt 0:00:45]} Be6 {[%emt 0:00:53]} ({Black should try} 7... Be7 {White must now prevent ...Nxf2.} 8. Bb3 O-O) 8. Bb5 $17 {[%emt 0:00:10]} Bd6 {[%emt 0:02:16]} 9. Nxd4 {[%emt 0:00:14]} ({White should play} 9. cxd4 $15 O-O 10. Nc3) 9... O-O $19 {[%emt 0:00:14][%cal Od6h2] [#] ...Bxh2+! would now be deadly. Black is clearly better.} 10. Nxe6 $2 {[%emt 0:01:35]} (10. Bxc6 $17 {was necessary.} bxc6 11. Nd2 Nxd2 12. Bxd2) 10... fxe6 {[%emt 0:00:17]} 11. Qg4 {[%emt 0:00:54] White is weak on the dark squares} (11. f4 $142) 11... Qf6 {[%emt 0:00:07] Black is clearly winning.} ({And not} 11... Rxf2 12. Rxe4 (12. Qxe6+ $2 {perishes.} Kh8 $19) 12... Bc5 13. Be3 $11 (13. Rxe6 $2 Rf4+ 14. Be3 Bxe3+ 15. Rxe3 Rxg4 $19) (13. Qxe6+ $2 Kh8 $19)) ({Don't take} 11... Nxf2 12. Qxe6+ Kh8 13. g3) 12. f3 {[%emt 0:00:50]} Ne5 {[%emt 0:00:27] Excellent horsemanship.} 13. Qh3 {[%emt 0:00:47]} Bc5+ {[%emt 0:00:12]} 14. Be3 {[%emt 0:00:10]} (14. Kf1 $142) 14... Bxe3+ {[%emt 0:02:34]} 15. Rxe3 {[%emt 0:00:03]} Qf4 {[%emt 0:00:02]} 16. Qxe6+ {[%emt 0:01:11]} Kh8 {[%emt 0:00:02]} 17. Re1 {[%emt 0:00:57] Weighted Error Value: White=1.17/Black=0.44.  Loses game:     	White=1     	---        Mistake:       	White=3     	---        OK:         	White=1     	Black=4      Best:        	White=1     	---} 0-1

[Event "13th All African Rapid-ch Men 2024"]
[Site "Accra"]
[Date "2024.03.10"]
[Round "4.5"]
[White "Levitan, Caleb Levi"]
[Black "Wanyama, Harold"]
[Result "0-1"]
[ECO "B47"]
[WhiteElo "2235"]
[BlackElo "2226"]
[Annotator "TA"]
[PlyCount "82"]
[EventDate "2024.03.07"]
[EventType "rapid"]
[EventCountry "GHA"]
[SourceTitle "playchess.com"]
[Source "ChessBase"]
[SourceQuality "1"]
[TimeControl "900+10"]

{[%evp 15,82,0,16,0,13,-8,47,41,48,53,97,101,138,-38,-58,-59,-50,-92,-72,-83,-13,-78,-77,-85,-76,-97,-89,-114,-116,-105,-108,-123,-127,-155,-86,-95,0,-545,-513,-646,-631,-577,-424,-421,-388,-953,-932,-919,-499,-29980,-7138,-29986,-29987,-29990,-29991,-29990,-29991,-29991,-29992,-29992,-29993,-29993,-29994,-29997,-29996,-29996,-29997,-29998,-29999]} 1. e4 {[%emt 0:00:02]} c5 {[%emt 0:00:02]} 2. Nf3 {[%emt 0:00:01]} e6 {[%emt 0:00:05]} 3. d4 {[%emt 0:00:02]} cxd4 {[%emt 0:00:03]} 4. Nxd4 {[%emt 0:00:01]} Nc6 {[%emt 0:00:02]} 5. Nc3 {[%emt 0:00:02]} Qc7 {[%emt 0:00:04]} 6. Nxc6 {[%emt 0:00:05]} bxc6 {[%emt 0:00:02]} 7. Bd3 {[%emt 0:00:01]} Nf6 {[%emt 0:00:10]} 8. O-O {[%emt 0:00:16]} d5 {[%emt 0:00:04]} 9. Re1 {[%emt 0:00:12]} Bd6 {[%emt 0:00:20]} 10. h3 {[%emt 0:02:58]} d4 {[%emt 0:00:16]} ({Vorzuziehen ist} 10... O-O $11) 11. Ne2 $1 $14 {[%emt 0:00:29] Weiß steht etwas besser.} c5 {[%emt 0:00:35] Und ...c4 würde nun gewinnen.} 12. c3 {[%emt 0:00:29]} e5 {[%emt 0:01:09]} 13. cxd4 {[%emt 0:01:00]} cxd4 {[%emt 0:00:04] [#]} 14. f4 $2 {[%emt 0:00:12]} O-O $15 {[%emt 0:00:31]} 15. fxe5 {[%emt 0:01:01]} Bxe5 {[%emt 0:00:03]} 16. Bg5 {[%emt 0:00:27]} Bb7 {[%emt 0:00:04]} 17. Rc1 {[%emt 0:00:47]} Qb6 {[%emt 0:00:14]} (17... Qd6 $17 18. Bxf6 Bxf6 (18... Qxf6 19. Kh1 $17)) 18. Bxf6 {[%emt 0:00:11]} (18. Bf4 $11 {hält das Gleichgewicht.} Nd7 19. Qb3) 18... Qxf6 $17 {[%emt 0:00:16]} (18... gxf6 19. Kh1 $15) 19. Rf1 {[%emt 0:00:36]} Qb6 {[%emt 0:00:13]} 20. Qd2 {[%emt 0:00:20]} Rae8 {[%emt 0:00:52]} 21. Nf4 {[%emt 0:02:12]} Bb8 {[%emt 0:00:11] Das Läuferpaar ist gut.} 22. Rce1 {[%emt 0:00:16]} Qd6 {[%emt 0:00:04]} 23. Qd1 {[%emt 0:02:05]} Re5 {[%emt 0:00:37]} 24. Qg4 {[%emt 0:00:36]} h6 {[%emt 0:00:07]} (24... g6 $142 {Zielt auf ...Rfe8 ab.} 25. Qh4 Rc8) 25. h4 {[%emt 0:00:45] [#]} f5 {[%emt 0:00:49]} 26. Qg3 $2 {[%emt 0:01:31][%mdl 8192] Die Straße ins Nirgendwo für Weiß.} (26. Qg6 $1 $11 Rf6 27. Bc4+ Kh8 28. exf5 Rxg6 (28... Rxe1 $2 29. Rxe1 Qf8 30. Re8 $18) 29. Nxg6+ Kh7 30. Rxe5) 26... fxe4 $19 {[%emt 0:00:28]} (26... Bxe4 27. Ng6 Bxd3 28. Rxe5 Bxf1 29. Qb3+ Kh7 30. Nxf8+ Qxf8 31. Re6 $11) 27. Ng6 {[%emt 0:00:14] Es drohte exd3} Rxf1+ {[%emt 0:00:21]} 28. Rxf1 {[%emt 0:00:34] Droht Bc4+ und aus.} Re8 {[%emt 0:01:12]} 29. Bc4+ {[%emt 0:00:41]} Kh7 {[%emt 0:00:12]} 30. Nf4 $2 {[%emt 0:00:09]} (30. Qxd6 Bxd6 31. Nf4) 30... Rf8 {[%emt 0:00:29][%cal Rf8f4]} 31. h5 {[%emt 0:00:16]} d3 {[%emt 0:02:22]} (31... Rxf4 32. Rxf4 Bc6 (32... Qxf4 33. Qg6+ Kh8 34. Qe8+) 33. Qg6+ Qxg6 34. hxg6+ Kxg6 35. Rf8 $19) 32. Qg4 {[%emt 0:01:12]} (32. Qg6+ $19 Qxg6 33. hxg6+ Kh8 34. Nxd3 Rxf1+ (34... Bh2+ $2 35. Kxh2 Rxf1 36. Ne5 $19) 35. Kxf1 exd3 36. Bxd3) 32... Qc5+ {[%emt 0:00:33]} ({Schlechter ist} 32... Rxf4 33. Rxf4 Qc5+ (33... Qxf4 34. Qg6+ Kh8 35. Qe8+) 34. Kf1 Qxc4 (34... Bxf4 35. Qg6+ Kh8 36. Qe8+) 35. Qg6+ Kg8 36. Qe8+ Kh7 37. Qg6+ Kg8 38. Qe8+ Kh7 39. Qg6+ $11) 33. Kh1 {[%emt 0:00:39]} Qxc4 {[%emt 0:00:16] Schwarz setzt Matt.} 34. g3 {[%emt 0:00:16]} e3+ {[%emt 0:00:09]} 35. Kh2 {[%emt 0:00:00]} Bxf4 {[%emt 0:00:08]} 36. gxf4 {[%emt 0:00:14]} e2 {[%emt 0:00:08]} 37. Qg6+ {[%emt 0:00:10]} Kh8 {[%emt 0:00:06]} 38. Rg1 {[%emt 0:00:02]} Qxf4+ {[%emt 0:00:03]} ({Schwächer ist} 38... Qxa2 39. Qxg7#) 39. Rg3 {[%emt 0:00:05]} Qf2+ {[%emt 0:00:08]} 40. Kh3 {[%emt 0:00:02]} Bc8+ {[%emt 0:00:09]} ({Minderwertig wäre} 40... e1=B 41. Qxg7#) 41. Kh4 {[%emt 0:00:03]} Qh2+ {[%emt 0:00:06] Gewichteter Fehlerwert: Weiß=0.67/Schwarz=0.28 (präzise) .  Verlustzug:     	Weiß=1     	---        Fehler:       	Weiß=3     	Schwarz=4     Ungenau:       	Weiß=2     	Schwarz=2     OK:         	Weiß=5     	Schwarz=7     Bester:       	Weiß=2     	Schwarz=3     Stark:        	Weiß=1     	---} 0-1

[Event "13th All African Rapid-ch Men 2024"]
[Site "Accra"]
[Date "2024.03.10"]
[Round "4.6"]
[White "Asabri, Hussien"]
[Black "Silva, David"]
[Result "0-1"]
[ECO "E69"]
[WhiteElo "2196"]
[BlackElo "2358"]
[Annotator "TA"]
[PlyCount "82"]
[EventDate "2024.03.07"]
[EventType "rapid"]
[EventCountry "GHA"]
[SourceTitle "playchess.com"]
[Source "ChessBase"]
[SourceQuality "1"]
[TimeControl "900+10"]

{[%evp 18,82,63,20,11,14,28,0,0,0,0,-15,0,-47,-41,-36,-33,-34,0,-64,-57,-56,-72,-64,-29,-35,-5,-63,-52,-66,-57,-71,-90,-127,-140,-137,-131,-148,-77,-243,-153,-210,-239,-238,-245,-225,-254,-251,-252,-288,-285,-301,-276,-431,-429,-1323,-1104,-2390,-2906,-5206,-3756,-29988,-4937,-29988,-29988,-29993,-29994]} 1. d4 {[%emt 0:05:30]} Nf6 {[%emt 0:00:04]} 2. Nf3 {[%emt 0:00:03]} g6 {[%emt 0:00:02]} 3. g3 {[%emt 0:00:10]} Bg7 {[%emt 0:00:02]} 4. Bg2 {[%emt 0:00:00]} O-O {[%emt 0:00:02]} 5. O-O {[%emt 0:00:01]} d6 {[%emt 0:00:19]} 6. c4 {[%emt 0:00:02]} Nbd7 {[%emt 0:00:22]} 7. Nc3 {[%emt 0:00:01]} e5 {[%emt 0:00:06]} 8. e4 {[%emt 0:00:01]} c6 {[%emt 0:00:02]} 9. h3 {[%emt 0:00:01]} a6 {[%emt 0:00:01]} 10. a4 {[%emt 0:00:31]} a5 {[%emt 0:00:03]} 11. Be3 {[%emt 0:00:33]} exd4 {[%emt 0:00:03]} 12. Bxd4 {[%emt 0:00:24]} Re8 {[%emt 0:00:03] Die Stellung ist ausgeglichen.} 13. Re1 {[%emt 0:00:02]} Qc7 {[%emt 0:00:18]} (13... Ne5 $5) 14. Qd2 {[%emt 0:00:57]} Ne5 {[%emt 0:00:02]} 15. Nxe5 {[%emt 0:00:17]} (15. Qe2 $11 {ist überlegen.}) 15... dxe5 $15 {[%emt 0:00:01]} 16. Be3 {[%emt 0:00:06]} Be6 {[%emt 0:00:01]} 17. b3 {[%emt 0:00:01]} Nd7 {[%emt 0:00:04][%cal Bf6d7,Bd7c5,Bc5d3][%mdl 32]} 18. Rac1 {[%emt 0:00:40]} (18. Nd5 $11 Qd8 (18... cxd5 19. cxd5 Nf8 20. Rac1 $16) 19. Red1) 18... Bf8 {[%emt 0:01:37]} 19. Red1 {[%emt 0:00:43][%cal Oc3d5]} Nc5 {[%emt 0:00:17]} 20. Qc2 {[%emt 0:00:41][%cal Oc3d5]} f5 {[%emt 0:00:33]} 21. exf5 {[%emt 0:01:13]} gxf5 {[%emt 0:00:14]} 22. f4 {[%emt 0:03:37]} (22. Kh2 $11) 22... e4 {[%emt 0:00:01]} 23. Kh2 {[%emt 0:00:25][%cal Og3g4]} Nd3 {[%emt 0:00:02]} 24. Rb1 {[%emt 0:00:06]} Rad8 {[%emt 0:02:48]} 25. Ne2 {[%emt 0:01:36]} Bg7 {[%emt 0:00:46]} 26. Rd2 {[%emt 0:00:30]} Nb4 $36 {[%emt 0:00:08][%mdl 2048] Schwarz hat starke Initiative. Schwarz hat aktiveres Spiel.} 27. Qd1 {[%emt 0:00:33] [#]} Rd3 {[%emt 0:00:01]} ({Besser ist} 27... Rxd2 $1 28. Qxd2 Rd8) 28. Bd4 $2 {[%emt 0:00:31] Danach ist Weiß chancenlos.} (28. Nd4 $17) 28... Qd7 {[%emt 0:00:21] Zielt auf ...Bxd4 ab.} 29. Rxd3 {[%emt 0:00:22]} (29. Be3 $17 {war nötig.}) 29... exd3 $19 {[%emt 0:00:04]} 30. Bxg7 {[%emt 0:00:06] Schwarz muss nun Ba1 beachten.} dxe2 {[%emt 0:00:03]} (30... Kxg7 31. Ng1 $17) 31. Qxd7 {[%emt 0:00:04]} Bxd7 {[%emt 0:00:10]} 32. Bc3 {[%emt 0:00:03]} Nd3 {[%emt 0:00:20]} 33. Be1 {[%emt 0:00:06]} Re3 {[%emt 0:00:07]} 34. Kg1 {[%emt 0:00:21]} Kf7 {[%emt 0:00:28]} 35. c5 {[%emt 0:00:08]} (35. Bxa5 {war einen Versuch wert.} Rxg3 (35... e1=R+ $2 36. Bxe1 Nxe1 37. Bf1 $19) 36. Bd2) 35... Be6 {[%emt 0:00:09]} ({Finger weg von} 35... Nxc5 36. Bxa5 Nd3 (36... Nxb3 37. Kf2 $11) (36... Rxb3 37. Rxb3 Nxb3 38. Bc3 $19) (36... Rxg3 37. Kf2 $17) 37. Be1 $19) 36. b4 {[%emt 0:00:29]} (36. Kh2 $142) 36... axb4 {[%emt 0:00:09]} 37. a5 {[%emt 0:00:00]} Ba2 {[%emt 0:00:05]} 38. Ra1 {[%emt 0:00:10]} b3 {[%emt 0:00:04][%cal Ob3b2] [#] ( -> ...b2!)} 39. a6 {[%emt 0:00:01]} bxa6 {[%emt 0:00:04]} (39... b2 $142 40. Rb1 Bxb1 (40... bxa6 $2 41. Rxb2 Nxb2 42. Bxc6 $19) 41. axb7 Nxe1 42. Bd5+ cxd5 43. b8=Q Nf3+ (43... Rxg3+ {ist ein Selbstmatt.} 44. Kf2 Rg2+ 45. Kxe1 Bd3 46. Qb7+ Kg6 47. Kd2 b1=Q 48. Qxb1 Bxb1 49. c6) 44. Kg2 e1=Q (44... e1=R 45. Qxb2) 45. Qb7+ Re7 46. Qxd5+ Kg7 47. Qxf3 Re2+ 48. Qxe2 Qxe2+ 49. Kg1 Be4 50. h4 b1=Q#) 40. Bxc6 {[%emt 0:00:30]} b2 {[%emt 0:00:03]} 41. Rxa2 {[%emt 0:00:07]} b1=Q {[%emt 0:00:05] Gewichteter Fehlerwert: Weiß=0.93/Schwarz=0.39.  Verlustzug:     	Weiß=1     	---        Fehler:       	Weiß=6     	Schwarz=1     Ungenau:       	Weiß=3     	Schwarz=4     OK:         	Weiß=9     	Schwarz=11    Bester:       	---       	Schwarz=2} 0-1

[Event "13th All African Rapid-ch Men 2024"]
[Site "Accra"]
[Date "2024.03.10"]
[Round "4.7"]
[White "Rongwane, Gomolemo"]
[Black "Pereira, Sergio Murilo de Ara"]
[Result "1-0"]
[ECO "E04"]
[WhiteElo "2021"]
[BlackElo "2115"]
[Annotator "RC"]
[PlyCount "101"]
[EventDate "2024.03.07"]
[EventType "rapid"]
[EventCountry "GHA"]
[SourceTitle "playchess.com"]
[Source "ChessBase"]
[SourceQuality "1"]
[TimeControl "900+10"]

1. d4 {[%emt 0:00:02]} Nf6 {[%emt 0:00:07]} 2. c4 {[%emt 0:00:05]} e6 {[%emt 0:00:01]} 3. Nf3 {[%emt 0:00:04]} d5 {[%emt 0:00:01]} 4. g3 {[%emt 0:00:01]} dxc4 {[%emt 0:00:19]} 5. Bg2 {[%emt 0:00:14]} c5 {[%emt 0:00:02]} 6. O-O {[%emt 0:00:45]} Nc6 {[%emt 0:01:17]} 7. Qa4 {[%emt 0:00:08]} Bd7 {[%emt 0:01:31]} 8. dxc5 {[%emt 0:00:11]} Bxc5 {[%emt 0:00:52]} 9. Qxc4 {[%emt 0:00:05]} Be7 {[%emt 0:00:43]} 10. Nc3 {[%emt 0:00:05]} O-O {[%emt 0:00:47]} 11. Rd1 {[%emt 0:00:09]} Qa5 {[%emt 0:01:07]} 12. Bg5 {[%emt 0:01:12]} Rfd8 {[%emt 0:00:50]} 13. a3 {[%emt 0:00:15]} Rac8 {[%emt 0:00:47]} 14. b4 {[%emt 0:00:39]} Nxb4 {[%emt 0:00:48]} 15. Qb3 {[%emt 0:00:24]} Nc6 {[%emt 0:02:01]} 16. Bd2 {[%emt 0:01:30]} Qa6 {[%emt 0:00:56]} 17. Be1 {[%emt 0:02:08]} Na5 {[%emt 0:00:34]} 18. Qb1 {[%emt 0:00:07]} Nc4 {[%emt 0:00:51]} 19. a4 {[%emt 0:00:15]} Bc6 {[%emt 0:01:20]} 20. Nb5 {[%emt 0:00:19]} Qb6 {[%emt 0:00:17]} 21. Qa2 {[%emt 0:02:19]} a6 {[%emt 0:00:32]} 22. Nbd4 {[%emt 0:00:56]} Bd5 {[%emt 0:00:13]} 23. a5 {[%emt 0:00:10]} Qc7 {[%emt 0:00:33]} 24. Rac1 {[%emt 0:00:11]} Qd7 {[%emt 0:00:05]} 25. Qa1 {[%emt 0:00:28]} Qe8 {[%emt 0:00:12]} 26. Bc3 {[%emt 0:00:49]} Ne4 {[%emt 0:00:25]} 27. Be1 {[%emt 0:00:18]} Bf6 {[%emt 0:00:04]} 28. e3 {[%emt 0:00:19]} Ned6 {[%emt 0:00:26]} 29. Qb1 {[%emt 0:00:19]} Qe7 {[%emt 0:00:18]} 30. Bb4 {[%emt 0:00:08]} Qe8 {[%emt 0:00:19]} 31. h4 {[%emt 0:00:10]} Be4 {[%emt 0:00:24]} 32. Qa2 {[%emt 0:00:12]} Bd5 {[%emt 0:00:01]} 33. Qe2 {[%emt 0:00:27]} Qa4 {[%emt 0:00:06]} 34. Qe1 {[%emt 0:00:24]} Nb2 {[%emt 0:00:16]} 35. Ra1 {[%emt 0:00:02]} Qd7 {[%emt 0:00:33]} 36. Rdb1 {[%emt 0:00:26]} Nd3 {[%emt 0:00:08]} 37. Qd2 {[%emt 0:00:02]} Nxb4 {[%emt 0:00:05]} 38. Qxb4 {[%emt 0:00:02]} Rc4 {[%emt 0:00:15]} 39. Qe1 {[%emt 0:01:02]} Rdc8 {[%emt 0:00:11]} 40. Nd2 {[%emt 0:00:16]} Bxd4 {[%emt 0:00:14]} 41. Nxc4 {[%emt 0:00:10]} Bxg2 {[%emt 0:00:44]} 42. Nxd6 {[%emt 0:00:15]} Qxd6 {[%emt 0:00:36]} 43. Rd1 {[%emt 0:00:19]} Qc6 {[%emt 0:00:18]} 44. Rxd4 {[%emt 0:00:35]} e5 {[%emt 0:00:00]} 45. Rdd1 {[%emt 0:00:11]} Bh3 {[%emt 0:00:06]} 46. e4 {[%emt 0:00:06]} Qe6 {[%emt 0:00:14]} 47. Rac1 {[%emt 0:00:09]} Re8 {[%emt 0:00:02]} 48. Qe2 {[%emt 0:00:25]} Bg4 {[%emt 0:00:05]} 49. f3 {[%emt 0:00:02]} Bh5 {[%emt 0:00:01]} 50. g4 {[%emt 0:00:08]} Qg6 {[%emt 0:00:15]} 51. Qg2 {[%emt 0:00:10]} 1-0

[Event "13th All African Rapid-ch Men 2024"]
[Site "Accra"]
[Date "2024.03.10"]
[Round "4.8"]
[White "Cogan, Nicolas"]
[Black "Frempong-Smart Daniel"]
[Result "1-0"]
[ECO "D85"]
[WhiteElo "2070"]
[BlackElo "1877"]
[Annotator "RC"]
[PlyCount "65"]
[EventDate "2024.03.07"]
[EventType "rapid"]
[EventCountry "GHA"]
[SourceTitle "playchess.com"]
[Source "ChessBase"]
[SourceQuality "1"]
[TimeControl "900+10"]

1. d4 {[%emt 0:00:04]} Nf6 {[%emt 0:03:34]} 2. c4 {[%emt 0:00:07]} g6 {[%emt 0:00:03]} 3. Nc3 {[%emt 0:00:03]} d5 {[%emt 0:00:02]} 4. cxd5 {[%emt 0:00:03]} Nxd5 {[%emt 0:00:02]} 5. Bd2 {[%emt 0:00:02]} Bg7 {[%emt 0:00:04]} 6. e4 {[%emt 0:00:01]} Nb6 {[%emt 0:00:03]} 7. Be3 {[%emt 0:00:02]} Nc6 {[%emt 0:01:05]} 8. Nf3 {[%emt 0:00:02]} Bg4 {[%emt 0:00:06]} 9. d5 {[%emt 0:00:02]} Ne5 {[%emt 0:00:23]} 10. Be2 {[%emt 0:00:24]} Bxf3 {[%emt 0:00:20]} 11. gxf3 {[%emt 0:00:04]} c6 {[%emt 0:00:45]} 12. Bd4 {[%emt 0:01:34]} O-O {[%emt 0:00:05]} 13. f4 {[%emt 0:00:29]} Nec4 {[%emt 0:00:23]} 14. Bxc4 {[%emt 0:00:26]} e5 {[%emt 0:01:20]} 15. Bxb6 {[%emt 0:01:06]} Qxb6 {[%emt 0:00:03]} 16. Qe2 {[%emt 0:01:16]} exf4 {[%emt 0:00:20]} 17. f3 {[%emt 0:00:43]} cxd5 {[%emt 0:01:24]} 18. Nxd5 {[%emt 0:01:12]} Qa5+ {[%emt 0:00:09]} 19. Kf1 {[%emt 0:01:13]} Kh8 {[%emt 0:00:41]} 20. Kg2 {[%emt 0:01:18]} Rae8 {[%emt 0:00:10]} 21. Rhd1 {[%emt 0:03:40]} f5 {[%emt 0:00:12]} 22. Bd3 {[%emt 0:00:25]} Qd8 {[%emt 0:00:52]} 23. Qf2 {[%emt 0:00:38]} fxe4 {[%emt 0:00:51]} 24. Bxe4 {[%emt 0:00:08]} Qg5+ {[%emt 0:01:50]} 25. Kh1 {[%emt 0:00:06]} Qh5 {[%emt 0:00:27]} 26. Rac1 {[%emt 0:00:26]} b6 {[%emt 0:00:14]} 27. Nc3 {[%emt 0:01:23]} Rf7 {[%emt 0:01:36]} 28. Rd5 {[%emt 0:00:17]} Qh6 {[%emt 0:00:12]} 29. Rcd1 {[%emt 0:00:03]} Bf6 {[%emt 0:00:34]} 30. Qg2 {[%emt 0:00:17]} g5 {[%emt 0:00:25]} 31. Rd7 {[%emt 0:00:11]} Be7 {[%emt 0:00:11]} 32. Nd5 {[%emt 0:00:16]} Qe6 {[%emt 0:00:41]} 33. Nc7 {[%emt 0:00:17]} 1-0

[Event "13th All African Rapid-ch Men 2024"]
[Site "Accra"]
[Date "2024.03.10"]
[Round "4.9"]
[White "Akpa Prince"]
[Black "Oluka Robert Mcligeyo"]
[Result "0-1"]
[ECO "E21"]
[WhiteElo "1845"]
[BlackElo "2041"]
[Annotator "RC"]
[PlyCount "76"]
[EventDate "2024.03.07"]
[EventType "rapid"]
[EventCountry "GHA"]
[SourceTitle "playchess.com"]
[Source "ChessBase"]
[SourceQuality "1"]
[TimeControl "900+10"]

1. d4 {[%emt 0:00:07]} Nf6 {[%emt 0:00:02]} 2. Nf3 {[%emt 0:00:02]} e6 {[%emt 0:00:03]} 3. c4 {[%emt 0:00:04]} Bb4+ {[%emt 0:00:03]} 4. Nc3 {[%emt 0:00:05]} O-O {[%emt 0:00:08]} 5. g3 {[%emt 0:00:02]} b6 {[%emt 0:00:02]} 6. Bg2 {[%emt 0:00:02]} Bb7 {[%emt 0:00:02]} 7. O-O {[%emt 0:00:05]} Bxc3 {[%emt 0:00:08]} 8. bxc3 {[%emt 0:00:03]} d6 {[%emt 0:00:02]} 9. Bg5 {[%emt 0:00:34]} Nbd7 {[%emt 0:00:05]} 10. Re1 {[%emt 0:00:15]} h6 {[%emt 0:00:03]} 11. Bf4 {[%emt 0:00:46]} Re8 {[%emt 0:02:18]} 12. Qb3 {[%emt 0:01:51]} e5 {[%emt 0:00:54]} 13. dxe5 {[%emt 0:00:20]} dxe5 {[%emt 0:00:03]} 14. Nxe5 {[%emt 0:00:51]} Bxg2 {[%emt 0:02:29]} 15. Nxd7 {[%emt 0:00:08]} Qxd7 {[%emt 0:00:01]} 16. Kxg2 {[%emt 0:00:13]} Qc6+ {[%emt 0:00:02]} 17. f3 {[%emt 0:01:08]} Ng4 {[%emt 0:01:06]} 18. e4 {[%emt 0:00:27]} Ne5 {[%emt 0:00:09]} 19. Bxe5 {[%emt 0:01:00]} Rxe5 {[%emt 0:00:02]} 20. Rad1 {[%emt 0:00:41]} Rc5 {[%emt 0:01:06]} 21. Rd4 {[%emt 0:00:10]} b5 {[%emt 0:00:49]} 22. cxb5 {[%emt 0:02:03]} Rxb5 {[%emt 0:00:02]} 23. Rb4 {[%emt 0:00:59]} Rc5 {[%emt 0:00:04]} 24. Re3 {[%emt 0:02:54]} Rd8 {[%emt 0:00:21]} 25. Rd4 {[%emt 0:00:36]} Rxd4 {[%emt 0:00:44]} 26. cxd4 {[%emt 0:00:02]} Rc2+ {[%emt 0:00:01]} 27. Kg1 {[%emt 0:00:36]} Rc1+ {[%emt 0:00:04]} 28. Kf2 {[%emt 0:00:05]} Qd7 {[%emt 0:01:18]} 29. Qb2 {[%emt 0:02:21]} Rd1 {[%emt 0:00:11]} 30. d5 {[%emt 0:00:11]} Qh3 {[%emt 0:00:14]} 31. Qb8+ {[%emt 0:00:19]} Kh7 {[%emt 0:00:02]} 32. Re2 {[%emt 0:00:05]} Qxh2+ {[%emt 0:00:15]} 33. Ke3 {[%emt 0:00:01]} Qxg3 {[%emt 0:00:47]} 34. Qd8 {[%emt 0:00:19]} Rf1 {[%emt 0:00:46]} 35. Kd2 {[%emt 0:01:13]} Rxf3 {[%emt 0:00:13]} 36. Qe7 {[%emt 0:00:12]} Rd3+ {[%emt 0:00:50]} 37. Kc2 {[%emt 0:00:02]} Qf3 {[%emt 0:00:24]} 38. Rd2 {[%emt 0:00:11]} Ra3 {[%emt 0:01:34]} 0-1

[Event "13th All African Rapid-ch Men 2024"]
[Site "Accra"]
[Date "2024.03.10"]
[Round "4.10"]
[White "Mahamat Hachim Bachar"]
[Black "Fomevor, Cephas Clinton"]
[Result "0-1"]
[ECO "B17"]
[WhiteElo "1843"]
[BlackElo "1887"]
[Annotator "NA RC"]
[PlyCount "80"]
[EventDate "2024.03.07"]
[EventType "rapid"]
[EventCountry "GHA"]
[SourceTitle "playchess.com"]
[Source "ChessBase"]
[SourceQuality "1"]
[TimeControl "900+10"]

1. e4 {[%emt 0:00:06]} c6 {[%emt 0:03:21]} 2. d4 {[%emt 0:00:04]} d5 {[%emt 0:00:01]} 3. Nd2 {[%emt 0:00:03]} dxe4 {[%emt 0:00:01]} 4. Nxe4 {[%emt 0:00:01]} Nd7 {[%emt 0:00:01]} 5. Nf3 {[%emt 0:00:06]} Ngf6 {[%emt 0:00:01]} 6. Qe2 {[%emt 0:00:07]} Nxe4 {[%emt 0:00:01]} 7. Qxe4 {[%emt 0:00:02]} Nf6 {[%emt 0:00:01]} 8. Qd3 {[%emt 0:00:02]} Bg4 {[%emt 0:00:14]} 9. Bg5 {[%emt 0:00:04]} e6 {[%emt 0:00:02]} 10. Ne5 {[%emt 0:00:06]} Bf5 {[%emt 0:00:07]} 11. Qb3 {[%emt 0:00:02]} Qc7 {[%emt 0:00:24]} 12. O-O-O {[%emt 0:00:11]} Bd6 {[%emt 0:01:09]} 13. f4 {[%emt 0:00:03]} Nd5 {[%emt 0:01:05]} 14. c4 {[%emt 0:00:24]} Nf6 {[%emt 0:03:41]} 15. Bd3 {[%emt 0:00:08]} Ne4 {[%emt 0:00:34]} 16. g4 {[%emt 0:00:18]} Bxe5 {[%emt 0:02:45]} 17. dxe5 {[%emt 0:00:03]} Nxg5 {[%emt 0:00:28]} 18. gxf5 {[%emt 0:00:03]} Nh3 {[%emt 0:00:36]} 19. Rhf1 {[%emt 0:00:11]} g5 {[%emt 0:00:27]} 20. fxg6 {[%emt 0:16:26]} hxg6 {[%emt 0:00:22]} 21. Rf3 {[%emt 0:00:00]} g5 {[%emt 0:00:21]} 22. f5 {[%emt 0:00:00]} O-O-O {[%emt 0:00:31]} 23. fxe6 {[%emt 0:00:00]} fxe6 {[%emt 0:00:02]} 24. Qc3 {[%emt 0:00:00]} Nf4 {[%emt 0:00:36]} 25. Rd2 {[%emt 0:00:00]} Kb8 {[%emt 0:00:29]} 26. a3 {[%emt 0:00:00]} Qb6 {[%emt 0:00:21]} 27. Kb1 {[%emt 0:00:00]} Qg1+ {[%emt 0:00:13]} 28. Ka2 {[%emt 0:00:00]} Rxh2 {[%emt 0:00:15]} 29. Rf1 {[%emt 0:00:00]} Qg3 {[%emt 0:00:31]} 30. Rxh2 {[%emt 0:00:00]} Qxh2 {[%emt 0:00:08]} 31. Be4 {[%emt 0:00:00]} Qe2 {[%emt 0:00:18]} 32. Re1 {[%emt 0:00:00]} Qf2 {[%emt 0:00:26]} 33. Qb4 {[%emt 0:00:00]} Qb6 {[%emt 0:00:20]} 34. Qe7 {[%emt 0:00:00]} a6 {[%emt 0:00:20]} 35. Qxg5 {[%emt 0:00:00]} Nd3 {[%emt 0:00:17]} 36. Bxd3 {[%emt 0:00:00]} Rxd3 {[%emt 0:00:04]} 37. Qg8+ {[%emt 0:00:00]} Ka7 {[%emt 0:00:01]} 38. Qxe6 {[%emt 0:00:00]} Qb3+ {[%emt 0:00:06]} 39. Kb1 {[%emt 0:00:00]} Rd2 {[%emt 0:00:20]} 40. Kc1 {[%emt 0:00:00]} Qc2# {[%emt 0:00:19]} 0-1